fUST/lending_fUST_20250707
["ID","MTS","AMOUNT","RATE_DAILY","PERIOD"]
[370026400,1751840831270,-460.0,0.00019019,2]
[370026401,1751840831293,-460.0,0.00019019,2]
[370026402,1751840831317,-460.0,0.00019019,2]
[370026403,1751840831341,-460.0,0.00019019,2]
[370026404,1751840831365,-460.0,0.00019019,2]
[370026405,1751840831387,-460.0,0.00019019,2]
[370026406,1751840831409,-500.0,0.00019027,2]
[370026407,1751840831430,-1000.00701948,0.00019027,2]
[370026408,1751840831457,-3724.02886569,0.00019141,2]
[370026409,1751840831479,-666.0,0.00019178,2]
[370026410,1751840831500,-792.36251,0.00019178,2]
[370026411,1751840831523,-1000.0,0.00019263,2]
[370026412,1751840831547,-483.87,0.0001929,2]
[370026413,1751840831571,-460.0,0.0001929,2]
[370026414,1751840831596,-460.0,0.00019291,2]
[370026415,1751840831621,-184.63133444,0.00019292,2]
[370026416,1751840831644,-470.58,0.00019292,2]
[370026417,1751840831668,-460.0,0.00019293,2]
[370026418,1751840831692,-460.0,0.00019293,2]
[370026419,1751840831717,-460.0,0.00019293,2]
[370026420,1751840831743,-460.0,0.00019293,2]
[370026421,1751840831766,-460.0,0.00019293,2]
[370026422,1751840831793,-460.0,0.00019293,2]
[370026423,1751840831819,-460.0,0.00019293,2]
[370026424,1751840831842,-460.0,0.00019293,2]
[370026425,1751840831869,-3724.02886569,0.00019383,2]
[370026426,1751840831892,-334.64,0.00019559,3]
[370026427,1751840831915,-207.4,0.00019561,2]
[370026428,1751840831938,-767.98018654,0.00019561,2]
[370026429,1751840831960,-5000.0,0.00019561,2]
[370026430,1751840831984,-483.87,0.00019564,2]
[370026431,1751840832007,-460.0,0.00019564,2]
[370026432,1751840832030,-460.0,0.00019565,2]
[370026433,1751840832052,-470.58,0.00019566,2]
[370026434,1751840832074,-460.0,0.00019567,2]
[370026435,1751840832096,-460.0,0.00019567,2]
[370026436,1751840832120,-251.43259118,0.00019567,2]
[370026437,1751840832143,-212.54352261,0.00019567,2]
[370026438,1751840832165,-215.85995915,0.00019567,2]
[370026439,1751840832187,-462.174889,0.00019567,2]
[370026440,1751840832211,-460.0,0.00019567,2]
[370026441,1751840832232,-460.0,0.00019567,2]
[370026442,1751840832259,-3724.02886569,0.00019624,2]
[370026443,1751840832279,-151.0675331,0.00019726,2]
[370026444,1751840832301,-151.0,0.00019726,2]
[370026445,1751840832324,-298.26877156,0.00019726,2]
[370026446,1751840832346,-151.0,0.00019726,2]
[370026447,1751840832368,-151.0,0.00019753,2]
[370026448,1751840832392,-151.0,0.00019753,2]
[370026449,1751840832413,-198.0,0.00019781,2]
[370026450,1751840832434,-151.0,0.00019781,2]
[370026451,1751840832455,-500.0,0.00019795,2]
[370026452,1751840832476,-151.0,0.00019808,2]
[370026453,1751840832497,-1500.0,0.00019811,2]
[370026454,1751840832518,-151.0,0.00019836,2]
[370026455,1751840832540,-483.87,0.00019838,2]
[370026456,1751840832564,-558.19974642,0.00019838,2]
[370026457,1751840832587,-460.0,0.00019839,2]
[370026458,1751840832609,-470.58,0.0001984,2]
[370026459,1751840832632,-460.0,0.00019841,2]
[370026460,1751840832655,-460.0,0.00019841,2]
[370026461,1751840832679,-460.0,0.00019841,2]
[370026462,1751840832702,-460.0,0.00019841,2]
[370026463,1751840832726,-245.0,0.00019863,2]
[370026464,1751840832753,-3724.02886569,0.00019866,2]
[370026465,1751840832775,-967.0,0.00019955,2]
[370026466,1751840832796,-2152.0,0.00019955,2]
[370026467,1751840832817,-646.0,0.00019955,2]
[370026468,1751840832837,-406.0,0.00019955,2]
[370026469,1751840832858,-428.239,0.00019955,2]
[370026470,1751840832884,-3724.02886569,0.00020107,2]
[370026471,1751840832914,-5000.0,0.00020109,2]
[370026472,1751840832942,-483.87,0.00020112,2]
[370026473,1751840832965,-162.01210238,0.00020113,2]
[370026474,1751840832988,-470.58,0.00020114,2]
[370026475,1751840833010,-460.0,0.00020115,2]
[370026476,1751840833032,-460.0,0.00020115,2]
[370026477,1751840833056,-460.0,0.00020115,2]
[370026478,1751840833079,-460.0,0.00020115,2]
[370026479,1751840833104,-3724.02886569,0.00020348,3]
[370026480,1751840833125,-500.0,0.00020359,2]
[370026481,1751840833148,-483.87,0.00020386,2]
[370026482,1751840833170,-470.58,0.00020388,2]
[370026483,1751840833193,-460.0,0.00020389,2]
[370026484,1751840833215,-460.0,0.00020389,2]
[370026485,1751840833238,-157.72855488,0.00020389,2]
[370026486,1751840833260,-243.58935237,0.00020389,2]
[370026487,1751840833281,-587.0,0.00020395,2]
[370026488,1751840833308,-3724.02886569,0.0002059,3]
[370026489,1751840833330,-1389.75,0.000206,2]
[370026490,1751840833351,-5000.0,0.00020657,2]
[370026491,1751840833375,-483.87,0.0002066,2]
[370026492,1751840833398,-470.58,0.00020662,2]
[370026493,1751840833420,-460.0,0.00020663,2]
[370026494,1751840833443,-460.0,0.00020663,2]
[370026495,1751840833467,-150.0,0.00020681,2]
[370026496,1751840833488,-214.03875559,0.000207,3]
[370026497,1751840833510,-12582.33653824,0.000207,3]
[370026498,1751840833531,-848.15551661,0.000207,3]
[370026499,1751840833552,-742.282,0.0002079,2]
[370026500,1751840833580,-3724.02886569,0.00020831,4]
[370026501,1751840833602,-681.21955812,0.000209,2]
[370026502,1751840833624,-215.0738,0.0002093,2]
[370026503,1751840833649,-483.87,0.00020934,2]
[370026504,1751840833675,-470.58,0.00020936,2]
[370026505,1751840833700,-486.95899759,0.00020937,2]
[370026506,1751840833724,-460.0,0.00020937,2]
[370026507,1751840833749,-549.20648262,0.00020956,2]
[370026508,1751840833771,-19265.74068742,0.00021,2]
[370026509,1751840833796,-3724.02886569,0.00021072,4]
[370026510,1751840833823,-168.0,0.00021202,2]
[370026511,1751840833845,-5000.0,0.00021205,2]
[370026512,1751840833869,-483.87,0.00021208,2]
[370026513,1751840833892,-470.58,0.0002121,2]
[370026514,1751840833914,-460.0,0.00021211,2]
[370026515,1751840833935,-179.74835231,0.00021237,2]
[370026516,1751840833961,-3724.02886569,0.00021314,5]
[370026517,1751840833983,-483.87,0.00021482,2]
[370026518,1751840834005,-470.58,0.00021484,2]
[370026519,1751840834027,-460.0,0.00021485,2]
[370026520,1751840834049,-151.0,0.00021504,4]
[370026521,1751840834076,-3724.02886569,0.00021555,5]
[370026522,1751840834099,-168.0,0.00021578,2]
[370026523,1751840834121,-681.21955812,0.0002165,2]
[370026524,1751840834145,-168.0,0.00021718,2]
[370026525,1751840834167,-5000.0,0.00021753,2]
[370026526,1751840834191,-483.87,0.00021756,2]
[370026527,1751840834216,-470.58,0.00021758,2]
[370026528,1751840834239,-460.0,0.00021759,2]
[370026529,1751840834264,-3724.02886569,0.00021797,6]
[370026530,1751840834284,-641.0,0.000218,2]
[370026531,1751840834305,-32597.84476822,0.000219,2]
[370026532,1751840834326,-200.0,0.00021918,2]
[370026533,1751840834348,-168.0,0.00021966,2]
[370026534,1751840834369,-151.0,0.00021989,5]
[370026535,1751840834389,-100000.0,0.0002199,2]
[370026536,1751840834409,-429.68081948,0.00022,2]
[370026537,1751840834430,-200.0,0.00022,3]
[370026538,1751840834451,-214.03875559,0.00022,7]
[370026539,1751840834472,-2778.70343951,0.00022,7]
[370026540,1751840835015,-500.0,0.00018195,2]
[370026541,1751840835039,-400.0,0.00018195,2]
[370026542,1751840835061,-9803.63309873,0.00022,7]
[370026543,1751840835081,-848.15551661,0.00022,7]
[370026544,1751840835102,-1389.75,0.00022,7]
[370026545,1751840835125,-168.0,0.00022004,2]
[370026546,1751840835148,-483.87,0.0002203,2]
[370026547,1751840835169,-470.58,0.00022032,2]
[370026548,1751840835192,-460.0,0.00022033,2]
[370026549,1751840835219,-3724.02886569,0.00022038,6]
[370026550,1751840835239,-447.12586059,0.000221,2]
[370026551,1751840835262,-2443.622245,0.00022136,4]
[370026552,1751840835282,-178.721337,0.00022148,5]
[370026553,1751840835305,-168.0,0.00022182,2]
[370026554,1751840835326,-213.89355138,0.000222,7]
[370026555,1751840919036,563.749871,0.00013699,2]
[370026557,1751840923773,801.80613804,0.000273,120]
[370026571,1751840926245,1112.62,0.00027,120]
[370026572,1751840927206,2007.72757669,0.00024658,120]
[370026642,1751841038151,-260.46986615,0.00016824,2]
[370026643,1751841038165,-279.5318153,0.00016824,2]
[370026644,1751841038239,-58.42831855,0.00016824,2]
[370026645,1751841038253,-460.0,0.00016824,2]
[370026646,1751841038265,-460.0,0.00016824,2]
[370026647,1751841038276,-460.0,0.00016825,2]
[370026648,1751841038288,-300.0,0.00016826,2]
[370026649,1751841038299,-460.0,0.00016827,2]
[370026650,1751841038311,-508.19,0.00016827,2]
[370026651,1751841038323,-460.0,0.00016827,2]
[370026652,1751841038334,-302.17068552,0.00016827,2]
[370026653,1751841038347,-460.0,0.00016828,2]
[370026654,1751841038359,-569.34854338,0.00016828,2]
[370026657,1751841038372,-460.0,0.00016828,2]
[370026659,1751841038385,-601.6,0.00016828,2]
[370026660,1751841038396,-460.0,0.00016828,2]
[370026661,1751841038408,-48698.74283352,0.00017,2]
[370026664,1751841038420,-460.0,0.00017098,2]
[370026666,1751841038432,-460.0,0.00017098,2]
[370026668,1751841038443,-460.0,0.00017099,2]
[370026669,1751841038454,-460.0,0.00017101,2]
[370026670,1751841038466,-569.18,0.00017101,2]
[370026671,1751841038479,-460.0,0.00017102,2]
[370026672,1751841038491,-460.0,0.00017102,2]
[370026673,1751841038501,-460.0,0.00017102,2]
[370026674,1751841038513,-460.0,0.00017372,2]
[370026675,1751841038523,-329.6,0.00017373,2]
[370026676,1751841038533,-460.0,0.00017375,2]
[370026677,1751841038543,-500.0,0.00017375,2]
[370026678,1751841038555,-339.68180925,0.00017375,2]
[370026679,1751841038566,-500.0,0.00017375,2]
[370026680,1751841038577,-215.35492973,0.00017375,2]
[370026681,1751841038589,-500.0,0.00017375,2]
[370026682,1751841038600,-500.0,0.00017375,2]
[370026683,1751841038613,-500.0,0.00017375,2]
[370026684,1751841038624,-633.66229761,0.00017375,2]
[370026685,1751841038637,-500.0,0.00017375,2]
[370026686,1751841038649,-500.0,0.00017375,2]
[370026687,1751841038662,-500.0,0.00017375,2]
[370026688,1751841038675,-500.0,0.00017375,2]
[370026689,1751841038687,-500.0,0.00017375,2]
[370026690,1751841038700,-197.36980722,0.00017375,2]
[370026691,1751841038711,-500.0,0.00017375,2]
[370026692,1751841038721,-460.0,0.00017376,2]
[370026693,1751841038731,-460.0,0.00017376,2]
[370026694,1751841038741,-460.0,0.00017376,2]
[370026695,1751841038752,-460.0,0.00017646,2]
[370026696,1751841038763,-460.0,0.00017646,2]
[370026697,1751841038774,-460.0,0.00017646,2]
[370026698,1751841038786,-460.0,0.00017649,2]
[370026699,1751841038798,-460.0,0.0001765,2]
[370026700,1751841038810,-283.52,0.0001765,2]
[370026701,1751841038822,-220.04,0.0001765,2]
[370026702,1751841038834,-460.0,0.0001792,2]
[370026703,1751841038844,-460.0,0.0001792,2]
[370026704,1751841038855,-460.0,0.00017923,2]
[370026705,1751841038866,-460.0,0.00017924,2]
[370026706,1751841038879,-460.0,0.00017999,2]
[370026707,1751841038889,-60147.17827991,0.00018,2]
[370026708,1751841038901,-9479.00566272,0.00018,2]
[370026709,1751841038912,-31988.18058217,0.00018,2]
[370026710,1751841038924,-12438.46890546,0.00018,2]
[370026711,1751841038935,-5099.20161548,0.00018,2]
[370026712,1751841038946,-151.27645238,0.00018,2]
[370026713,1751841038959,-1986.1487286,0.00018,2]
[370026714,1751841038972,-1986.14872836,0.00018176,2]
[370026715,1751841038985,-460.0,0.00018194,2]
[370026716,1751841038997,-460.0,0.00018194,2]
[370026717,1751841039009,-460.0,0.00018197,2]
[370026718,1751841039022,-460.0,0.00018198,2]
[370026719,1751841039034,-460.0,0.00018273,2]
[370026720,1751841039045,-160.0,0.00018367,2]
[370026721,1751841039057,-230.45878613,0.00018367,2]
[370026722,1751841039070,-160.0,0.00018367,2]
[370026723,1751841039082,-420.0,0.00018381,2]
[370026724,1751841039093,-1986.14872836,0.00018452,2]
[370026725,1751841039104,-460.0,0.00018468,2]
[370026726,1751841039115,-270.5,0.00018468,2]
[370026727,1751841039126,-460.0,0.00018471,2]
[370026728,1751841039137,-460.0,0.00018472,2]
[370026729,1751841039147,-460.0,0.00018547,2]
[370026730,1751841039159,-1986.14872836,0.00018728,2]
[370026731,1751841039169,-544.73430419,0.00018742,2]
[370026732,1751841039180,-460.0,0.00018745,2]
[370026733,1751841039190,-174.7354169,0.00018746,2]
[370026734,1751841039201,-460.0,0.00018821,2]
[370026735,1751841039212,-1089.951293,0.000189,2]
[370026736,1751841039222,-21731.89651216,0.000189,2]
[370026737,1751841039232,-109023.429376,0.00018998,2]
[370026738,1751841039243,-23415.04046859,0.00019,2]
[370026739,1751841039254,-1986.14872836,0.00019003,2]
[370026740,1751841039264,-185.62746866,0.0001901,2]
[370026741,1751841039275,-429.09799735,0.00019019,2]
[370026742,1751841039286,-460.0,0.00019095,2]
[370026743,1751841039297,-1986.14872836,0.00019279,2]
[370026744,1751841039308,-277.7934729,0.00019369,2]
[370026745,1751841039319,-1986.14872836,0.00019555,2]
[370026746,1751841039330,-690.642,0.00019561,2]
[370026747,1751841039341,-207.4,0.00019561,2]
[370026748,1751841039353,-5000.0,0.00019561,2]
[370026749,1751841039364,-716.195754,0.00019616,2]
[370026750,1751841039375,-742.6949969,0.00019671,2]
[370026751,1751841039386,-770.17471178,0.00019726,2]
[370026752,1751841039397,-711.17239061,0.00019781,2]
[370026753,1751841039407,-1401.76561926,0.00019831,2]
[370026761,1751841040051,-584.3831091,0.00019831,2]
[370026762,1751841040062,-502.59999347,0.00019982,2]
[370026763,1751841040071,-3627.385112,0.0002,2]
[370026810,1751841043255,-437.51619125,0.0002,2]
[370026829,1751841046633,-460.0,0.00016827,2]
[370026830,1751841046642,-460.0,0.00017101,2]
[370026831,1751841046652,-419.4,0.00017375,2]
[370026832,1751841046661,-1071.642275,0.0002,2]
[370026833,1751841049347,-43290.26440557,0.0002,2]
[370026834,1751841904801,566.881816,0.00013699,2]
[370026836,1751841990133,-151.0,0.00016906,2]
[370026837,1751841990158,-1.42080031,0.00016915,2]
[370026866,1751842232523,-153.73618403,0.00016899,2]
[370026868,1751842232533,-300.0,0.00016914,2]
[370026870,1751842232542,-460.0,0.00016915,2]
[370026872,1751842232551,-460.0,0.00016915,2]
[370026874,1751842232560,-431.35423546,0.00016915,2]
[370026906,1751842238572,-28.64576454,0.00016915,2]
[370026907,1751842238582,-460.0,0.00016915,2]
[370026908,1751842238591,-70.11441696,0.00016915,2]
[370026909,1751842238603,-389.88558304,0.00016915,2]
[370026910,1751842238612,-460.0,0.00016915,2]
[370026911,1751842238622,-398.51321191,0.00016915,2]
[370026912,1751842238631,-78.65767699,0.00016915,2]
[370026913,1751842238643,-381.34232301,0.00016915,2]
[370026914,1751842238652,-80.80175433,0.00016915,2]
[370026915,1751842238670,-379.19824567,0.00016915,2]
[370026916,1751842238680,-460.0,0.00016915,2]
[370026917,1751842238690,-460.0,0.00016915,2]
[370026918,1751842238699,-24900.0,0.00016916,2]
[370026919,1751842238709,-502.73902851,0.00016999,2]
[370026920,1751842238718,-460.0,0.00016999,2]
[370026921,1751842238728,-460.0,0.00016999,2]
[370026922,1751842238737,-460.0,0.00017189,2]
[370026923,1751842238746,-460.0,0.00017189,2]
[370026924,1751842238755,-460.0,0.00017189,2]
[370026925,1751842238764,-460.0,0.00017189,2]
[370026926,1751842238773,-460.0,0.00017189,2]
[370026927,1751842238783,-460.0,0.00017189,2]
[370026928,1751842238792,-460.0,0.00017189,2]
[370026929,1751842238802,-209.7,0.00017189,2]
[370026930,1751842238812,-460.0,0.00017189,2]
[370026931,1751842238821,-460.0,0.00017273,2]
[370026932,1751842238830,-460.0,0.00017273,2]
[370026933,1751842238839,-460.0,0.00017463,2]
[370026934,1751842238851,-460.0,0.00017463,2]
[370026935,1751842238860,-460.0,0.00017463,2]
[370026936,1751842238870,-460.0,0.00017463,2]
[370026937,1751842238879,-604.57,0.00017463,2]
[370026938,1751842238889,-460.0,0.00017463,2]
[370026939,1751842238898,-329.6,0.00017463,2]
[370026940,1751842238908,-460.0,0.00017463,2]
[370026941,1751842238917,-460.0,0.00017547,2]
[370026942,1751842238926,-270.5,0.00017737,2]
[370026943,1751842238935,-460.0,0.00017737,2]
[370026944,1751842238945,-460.0,0.00017737,2]
[370026945,1751842238955,-460.0,0.00017737,2]
[370026946,1751842238964,-273.7334729,0.00017737,2]
[370026947,1751842238974,-460.0,0.00017737,2]
[370026948,1751842238983,-460.0,0.00017821,2]
[370026949,1751842238993,-2441.73353556,0.000179,2]
[370026950,1751842239003,-162.42747715,0.00017999,2]
[370026951,1751842239012,-318.89262136,0.00017999,2]
[370026952,1751842239022,-326.0,0.00018011,2]
[370026953,1751842239032,-460.0,0.00018011,2]
[370026954,1751842239042,-460.0,0.00018011,2]
[370026955,1751842239051,-460.0,0.00018011,2]
[370026956,1751842239061,-460.0,0.00018095,2]
[370026957,1751842239071,-2441.73353543,0.00018176,2]
[370026958,1751842239081,-460.0,0.00018285,2]
[370026959,1751842239091,-460.0,0.00018285,2]
[370026960,1751842239100,-422.65919969,0.00018285,2]
[370026961,1751842239110,-230.45878613,0.00018355,2]
[370026962,1751842239119,-160.0,0.00018355,2]
[370026963,1751842239129,-160.0,0.00018355,2]
[370026964,1751842239139,-460.0,0.00018369,2]
[370026965,1751842239148,-1072.4995928,0.0001845,2]
[370026966,1751842239158,-2441.73353543,0.00018452,2]
[370026967,1751842239167,-420.0,0.00018475,2]
[370026968,1751842239176,-437.0,0.00018546,2]
[370026969,1751842239185,-460.0,0.00018546,2]
[370026970,1751842239195,-460.0,0.00018546,2]
[370026971,1751842239204,-460.0,0.00018546,2]
[370026972,1751842239213,-460.0,0.00018546,2]
[370026973,1751842239223,-460.0,0.00018546,2]
[370026974,1751842239232,-460.0,0.00018546,2]
[370026975,1751842239242,-460.0,0.00018546,2]
[370026976,1751842239251,-460.0,0.00018546,2]
[370026977,1751842239260,-323.13,0.00018546,2]
[370026978,1751842239270,-460.0,0.00018546,2]
[370026979,1751842239283,-479.8,0.00018559,2]
[370026980,1751842239292,-460.0,0.00018559,2]
[370026981,1751842239301,-460.0,0.00018643,2]
[370026982,1751842239311,-2441.73353543,0.00018728,2]
[370026983,1751842239320,-224.37921612,0.0001882,2]
[370026984,1751842239333,-460.0,0.0001882,2]
[370026985,1751842239345,-460.0,0.0001882,2]
[370026986,1751842239357,-460.0,0.0001882,2]
[370026987,1751842239369,-460.0,0.0001882,2]
[370026988,1751842239381,-340.02,0.0001882,2]
[370026989,1751842239393,-460.0,0.0001882,2]
[370026990,1751842239404,-460.0,0.00018833,2]
[370026991,1751842239414,-2932.77719239,0.000189,2]
[370026992,1751842239425,-460.0,0.00018917,2]
[370026993,1751842239436,-2441.73353543,0.00019003,2]
[370026994,1751842239448,-500.0,0.00019071,2]
[370026995,1751842239459,-460.0,0.00019094,2]
[370026996,1751842239471,-460.0,0.00019094,2]
[370026997,1751842239482,-460.0,0.00019094,2]
[370026998,1751842239494,-460.0,0.00019094,2]
[370026999,1751842239505,-460.0,0.00019094,2]
[370027000,1751842239517,-460.0,0.00019107,2]
[370027001,1751842239529,-666.0,0.00019178,2]
[370027002,1751842239540,-460.0,0.00019191,2]
[370027003,1751842239551,-2441.73353543,0.00019279,2]
[370027004,1751842239563,-460.0,0.00019368,2]
[370027005,1751842239575,-424.8,0.00019368,2]
[370027006,1751842239586,-415.29,0.00019368,2]
[370027007,1751842239598,-277.44,0.00019381,2]
[370027008,1751842239609,-460.0,0.00019465,2]
[370027009,1751842239621,-2441.73353543,0.00019555,2]
[370027010,1751842239632,-207.4,0.00019561,2]
[370027011,1751842239643,-690.642,0.00019561,2]
[370027012,1751842239654,-5000.0,0.00019561,2]
[370027013,1751842239665,-1500.0,0.00019561,2]
[370027014,1751842239676,-4441.29178455,0.00019561,2]
[370027015,1751842239687,-17741.84128949,0.00019561,2]
[370027329,1751842246592,-7258.15871051,0.00019561,2]
[370027330,1751842246605,-716.195754,0.00019616,2]
[370027331,1751842246620,-1011.99532331,0.00019619,2]
[370027332,1751842246634,-460.0,0.00019642,2]
[370027333,1751842246647,-742.6949969,0.00019671,2]
[370027335,1751842246658,-770.17471178,0.00019726,2]
[370027337,1751842246671,-460.0,0.00019739,2]
[370027338,1751842246681,-798.67117612,0.00019781,2]
[370027340,1751842246693,-2441.73353543,0.00019831,2]
[370027341,1751842246704,-828.22200964,0.00019836,2]
[370027342,1751842246716,-151.17801057,0.00019863,2]
[370027343,1751842246728,-500.0,0.00019863,2]
[370027344,1751842246742,-151.0,0.00019863,2]
[370027345,1751842246757,-151.0,0.00019863,2]
[370027346,1751842246768,-151.0,0.00019863,2]
[370027347,1751842246780,-151.0,0.00019863,2]
[370027348,1751842246790,-151.0,0.00019863,2]
[370027349,1751842246801,-151.0,0.00019863,2]
[370027350,1751842246811,-151.0,0.00019863,2]
[370027351,1751842246821,-151.59975329,0.00019863,2]
[370027352,1751842246832,-151.0,0.00019863,2]
[370027353,1751842246848,-151.0,0.00019863,2]
[370027354,1751842246861,-151.0,0.00019863,2]
[370027355,1751842246873,-151.0,0.00019863,2]
[370027356,1751842246885,-234.44887311,0.00019863,2]
[370027357,1751842246896,-500.0,0.00019863,2]
[370027358,1751842246908,-151.0,0.00019863,2]
[370027359,1751842246920,-151.0,0.00019863,2]
[370027360,1751842246931,-151.0,0.00019863,2]
[370027361,1751842246943,-151.0,0.00019863,2]
[370027362,1751842246955,-500.0,0.00019863,2]
[370027363,1751842246967,-245.11139049,0.00019863,2]
[370027364,1751842246978,-500.0,0.00019863,2]
[370027365,1751842246990,-151.0,0.00019863,2]
[370027366,1751842247002,-151.0,0.00019863,2]
[370027367,1751842247014,-500.0,0.0001989,2]
[370027368,1751842247025,-151.0,0.0001989,2]
[370027369,1751842247037,-151.0,0.0001989,2]
[370027370,1751842247049,-151.0,0.0001989,2]
[370027371,1751842247060,-151.0,0.0001989,2]
[370027372,1751842247071,-151.0,0.0001989,2]
[370027373,1751842247083,-151.0,0.0001989,2]
[370027374,1751842247094,-151.0,0.0001989,2]
[370027375,1751842247105,-151.0,0.0001989,2]
[370027376,1751842247116,-500.0,0.0001989,2]
[370027377,1751842247126,-151.0,0.0001989,2]
[370027378,1751842247142,-151.0,0.0001989,2]
[370027379,1751842247155,-151.0,0.0001989,2]
[370027380,1751842247167,-500.0,0.0001989,2]
[370027381,1751842247178,-500.43418013,0.0001989,2]
[370027382,1751842247190,-858.86622399,0.00019891,2]
[370027383,1751842247201,-460.0,0.00019916,2]
[370027384,1751842247213,-500.0,0.00019918,2]
[370027385,1751842247225,-198.0,0.00019918,2]
[370027386,1751842247237,-198.0,0.00019918,2]
[370027387,1751842247249,-198.0,0.00019918,2]
[370027388,1751842247260,-198.0,0.00019918,2]
[370027389,1751842247272,-198.0,0.00019918,2]
[370027390,1751842247289,-198.0,0.00019918,2]
[370027391,1751842247300,-198.0,0.00019918,2]
[370027392,1751842247312,-151.0,0.00019918,2]
[370027393,1751842247323,-568.74627186,0.00019918,2]
[370027394,1751842247334,-182.40864838,0.00019918,2]
[370027395,1751842247346,-198.0,0.00019918,2]
[370027396,1751842247359,-198.0,0.00019918,2]
[370027397,1751842247370,-500.0,0.00019918,2]
[370027398,1751842247381,-500.0,0.00019945,2]
[370027399,1751842247392,-890.64427428,0.00019946,2]
[370027400,1751842247403,-500.0,0.00019973,2]
[370027401,1751842247415,-500.0,0.0002,2]
[370027402,1751842247426,-16108.26971621,0.0002,2]
[370027404,1751842870060,538.537725,0.00013699,2]
[370027407,1751843350171,-243.71936142,0.00016915,2]
[370027408,1751843350193,-178.9338478,0.00016915,2]
[370027409,1751843350215,-415.29,0.00016915,2]
[370027410,1751843350238,-460.0,0.00016915,2]
[370027411,1751843350260,-586.96,0.00017189,2]
[370027412,1751843350282,-524.94624002,0.00018347,2]
[370027413,1751843350306,-277.44,0.00018386,2]
[370027414,1751843350327,-300.0,0.00018386,2]
[370027415,1751843350349,-9233.86381262,0.00018387,2]
[370027416,1751843363104,-15666.13618738,0.00018387,2]
[370027417,1751843363124,-160.0,0.00018545,2]
[370027418,1751843363144,-230.45878613,0.00018545,2]
[370027419,1751843363166,-160.0,0.00018545,2]
[370027420,1751843363186,-160.0,0.00018545,2]
[370027421,1751843363205,-1955.18479493,0.000189,2]
[370027422,1751843363227,-633.890008,0.00019178,2]
[370027423,1751843363247,-666.0,0.00019178,2]
[370027424,1751843363267,-3249.05902612,0.00019231,2]
[370027425,1751843363286,-428.12142767,0.00019582,2]
[370027426,1751843363306,-302.60665372,0.00019602,2]
[370027427,1751843363327,-406.0,0.00019695,2]
[370027428,1751843363347,-428.239,0.00019695,2]
[370027429,1751843363368,-302.60665372,0.00019798,2]
[370027430,1751843363397,-2173.26060421,0.00019807,2]
[370027431,1751843363426,-1878.89128441,0.000199,2]
[370027432,1751843363448,-460.0,0.00019999,2]
[370027433,1751843363468,-4355.82269532,0.0002,2]
[370027434,1751843363489,-500.0,0.0002,2]
[370027435,1751843363510,-500.0,0.0002,2]
[370027436,1751843363531,-157.08101916,0.0002,2]
[370027437,1751843363554,-420.0,0.00020053,2]
[370027438,1751843363577,-460.0,0.00020106,2]
[370027439,1751843363600,-424.8,0.00020106,2]
[370027440,1751843363624,-1878.89128414,0.00020107,2]
[370027441,1751843363645,-150.0,0.00020152,2]
[370027442,1751843363664,-150.0,0.00020152,2]
[370027443,1751843363687,-150.0,0.00020152,2]